[Event "Titled Tuesday Blitz October 04 Late 2022"]
[White "Ghasi, Ameet K"]
[Black "Quesada Perez, Yuniesky"]
[WhiteFideId "409200"]
[BlackFideId "3504409"]
[WhiteElo "2587"]
[BlackElo "2599"]
[Result "0-1"]
[Round "02"]
[TimeControl "180+1"]
[Date "2022.10.04"]
[WhiteClock "0:00:42"]
[BlackClock "0:00:30"]

1. g3 {[%clk 0:03:00]}  d5 {[%clk 0:02:58]} 2. Bg2 {[%clk 0:02:59]}  c6 {[%clk 0:02:54]} 3. b3 {[%clk 0:02:58]}  Bf5 {[%clk 0:02:51]} 4. Bb2 {[%clk 0:02:57]}  Nf6 {[%clk 0:02:51]} 5. d3 {[%clk 0:02:55]}  e6 {[%clk 0:02:51]} 6. Nd2 {[%clk 0:02:52]}  h6 {[%clk 0:02:51]} 7. a3 {[%clk 0:02:52]}  Be7 {[%clk 0:02:49]} 8. e4 {[%clk 0:02:52]}  Bh7 {[%clk 0:02:49]} 9. Qe2 {[%clk 0:02:50]}  a5 {[%clk 0:02:46]} 10. Ngf3 {[%clk 0:02:51]}  Na6 {[%clk 0:02:44]} 11. O-O {[%clk 0:02:50]}  O-O {[%clk 0:02:43]} 12. Ne5 {[%clk 0:02:46]}  Nc5 {[%clk 0:02:38]} 13. f4 {[%clk 0:02:36]}  dxe4 {[%clk 0:02:34]} 14. dxe4 {[%clk 0:02:36]}  Qc7 {[%clk 0:02:32]} 15. Ng4 {[%clk 0:02:26]}  Ncd7 {[%clk 0:02:19]} 16. Nf2 {[%clk 0:02:21]}  b5 {[%clk 0:02:11]} 17. a4 {[%clk 0:02:09]}  bxa4 {[%clk 0:02:10]} 18. Rxa4 {[%clk 0:02:09]}  Nb6 {[%clk 0:02:10]} 19. Ra2 {[%clk 0:02:02]}  a4 {[%clk 0:02:10]} 20. Rfa1 {[%clk 0:02:01]}  axb3 {[%clk 0:02:10]} 21. Rxa8 {[%clk 0:02:01]}  Rxa8 {[%clk 0:01:56]} 22. Rxa8+ {[%clk 0:02:01]}  Nxa8 {[%clk 0:01:57]} 23. Nxb3 {[%clk 0:01:57]}  Nb6 {[%clk 0:01:56]} 24. Qa6 {[%clk 0:01:53]}  c5 {[%clk 0:01:46]} 25. Bc3 {[%clk 0:01:39]}  Nfd7 {[%clk 0:01:38]} 26. Na5 {[%clk 0:01:17]}  c4 {[%clk 0:01:28]} 27. Qb7 {[%clk 0:01:04]}  Qc5 {[%clk 0:01:13]} 28. Nc6 {[%clk 0:01:03]}  Bf8 {[%clk 0:00:55]} 29. Bd4 {[%clk 0:00:53]}  Qb5 {[%clk 0:00:44]} 30. Bf1 {[%clk 0:00:49]}  Bg6 {[%clk 0:00:39]} 31. g4 {[%clk 0:00:47]}  Nc5 {[%clk 0:00:31]} 32. Ne5 {[%clk 0:00:42]}  Nxb7 {[%clk 0:00:30]} 0-1


[Site "https://www.chess.com"]

[Event "Titled Tuesday Blitz October 04 Late 2022"]
[White "Howell, David W L"]
[Black "Gubajdullin, Alexei"]
[WhiteFideId "410608"]
[BlackFideId "4141202"]
[WhiteElo "2567"]
[BlackElo "2200"]
[Result "1-0"]
[Round "02"]
[TimeControl "180+1"]
[Date "2022.10.04"]
[WhiteClock "0:00:07"]
[BlackClock "0:00:02"]

1. b3 {[%clk 0:02:50]}  Nf6 {[%clk 0:02:57]} 2. Bb2 {[%clk 0:02:27]}  g6 {[%clk 0:02:56]} 3. e3 {[%clk 0:02:25]}  Bg7 {[%clk 0:02:56]} 4. d4 {[%clk 0:02:26]}  O-O {[%clk 0:02:55]} 5. Nf3 {[%clk 0:02:27]}  d6 {[%clk 0:02:55]} 6. Be2 {[%clk 0:02:21]}  a5 {[%clk 0:02:54]} 7. O-O {[%clk 0:02:19]}  a4 {[%clk 0:02:54]} 8. b4 {[%clk 0:02:07]}  Nc6 {[%clk 0:02:37]} 9. b5 {[%clk 0:01:58]}  Na5 {[%clk 0:02:35]} 10. c4 {[%clk 0:01:58]}  d5 {[%clk 0:02:34]} 11. cxd5 {[%clk 0:01:47]}  Nxd5 {[%clk 0:02:27]} 12. Qxa4 {[%clk 0:01:44]}  b6 {[%clk 0:02:24]} 13. Nbd2 {[%clk 0:01:30]}  Bb7 {[%clk 0:02:23]} 14. Rfc1 {[%clk 0:01:30]}  Qd6 {[%clk 0:02:11]} 15. Qc2 {[%clk 0:01:16]}  Rac8 {[%clk 0:02:08]} 16. Qd1 {[%clk 0:00:50]}  Bh6 {[%clk 0:02:03]} 17. Nc4 {[%clk 0:00:34]}  Nxc4 {[%clk 0:02:02]} 18. Rxc4 {[%clk 0:00:34]}  Bxe3 {[%clk 0:01:44]} 19. fxe3 {[%clk 0:00:35]}  Nxe3 {[%clk 0:01:44]} 20. Qb3 {[%clk 0:00:32]}  Nxc4 {[%clk 0:01:40]} 21. Bxc4 {[%clk 0:00:33]}  Rcd8 {[%clk 0:01:35]} 22. Rf1 {[%clk 0:00:27]}  Bd5 {[%clk 0:01:34]} 23. a4 {[%clk 0:00:24]}  f6 {[%clk 0:01:15]} 24. Rc1 {[%clk 0:00:22]}  Kg7 {[%clk 0:01:01]} 25. Bxd5 {[%clk 0:00:21]}  Qxd5 {[%clk 0:01:00]} 26. Qxd5 {[%clk 0:00:21]}  Rxd5 {[%clk 0:01:00]} 27. Rxc7 {[%clk 0:00:22]}  Kf7 {[%clk 0:00:59]} 28. Ba3 {[%clk 0:00:21]}  Ra8 {[%clk 0:00:54]} 29. Rxe7+ {[%clk 0:00:21]}  Kg8 {[%clk 0:00:54]} 30. Bc1 {[%clk 0:00:09]}  Rxa4 {[%clk 0:00:50]} 31. Bh6 {[%clk 0:00:10]}  Rxb5 {[%clk 0:00:39]} 32. Rg7+ {[%clk 0:00:10]}  Kh8 {[%clk 0:00:39]} 33. Rf7 {[%clk 0:00:07]}  Ra8 {[%clk 0:00:38]} 34. Rxf6 {[%clk 0:00:07]}  Kg8 {[%clk 0:00:37]} 35. h4 {[%clk 0:00:04]}  Rb8 {[%clk 0:00:30]} 36. Kh2 {[%clk 0:00:05]}  Rf5 {[%clk 0:00:29]} 37. Rc6 {[%clk 0:00:04]}  b5 {[%clk 0:00:29]} 38. Ne5 {[%clk 0:00:04]}  b4 {[%clk 0:00:28]} 39. Nd7 {[%clk 0:00:04]}  Rd8 {[%clk 0:00:22]} 40. Nf6+ {[%clk 0:00:05]}  Kh8 {[%clk 0:00:19]} 41. Rc7 {[%clk 0:00:03]}  Rxf6 {[%clk 0:00:10]} 42. Bg7+ {[%clk 0:00:03]}  Kg8 {[%clk 0:00:10]} 43. Bxf6 {[%clk 0:00:04]}  Rb8 {[%clk 0:00:11]} 44. Be5 {[%clk 0:00:04]}  b3 {[%clk 0:00:09]} 45. Rc1 {[%clk 0:00:05]}  b2 {[%clk 0:00:08]} 46. Rb1 {[%clk 0:00:05]}  Rb5 {[%clk 0:00:08]} 47. Kg3 {[%clk 0:00:06]}  Kf7 {[%clk 0:00:08]} 48. Kf4 {[%clk 0:00:06]}  Ke6 {[%clk 0:00:08]} 49. Ke4 {[%clk 0:00:07]}  h6 {[%clk 0:00:08]} 50. Kd3 {[%clk 0:00:07]}  g5 {[%clk 0:00:08]} 51. hxg5 {[%clk 0:00:07]}  hxg5 {[%clk 0:00:08]} 52. Kc4 {[%clk 0:00:08]}  Rb7 {[%clk 0:00:07]} 53. Kc3 {[%clk 0:00:08]}  Kd5 {[%clk 0:00:07]} 54. Rxb2 {[%clk 0:00:09]}  Ra7 {[%clk 0:00:07]} 55. Re2 {[%clk 0:00:06]}  Ra3+ {[%clk 0:00:06]} 56. Kd2 {[%clk 0:00:07]}  g4 {[%clk 0:00:06]} 57. g3 {[%clk 0:00:06]}  Rb3 {[%clk 0:00:04]} 58. Ke1 {[%clk 0:00:05]}  Ra3 {[%clk 0:00:03]} 59. Kf2 {[%clk 0:00:06]}  Rb3 {[%clk 0:00:03]} 60. Kg2 {[%clk 0:00:07]}  Rb4 {[%clk 0:00:02]} 61. Rf2 {[%clk 0:00:07]} 1-0


[Site "https://www.chess.com"]

[Event "Titled Tuesday Blitz October 04 Late 2022"]
[White "Ibarra Jerez, Jose Carlos"]
[Black "Janaszak, Dawid"]
[WhiteFideId "2226332"]
[BlackFideId "1119206"]
[WhiteElo "2627"]
[BlackElo "2226"]
[Result "1-0"]
[Round "02"]
[TimeControl "180+1"]
[Date "2022.10.04"]
[WhiteClock "0:00:12"]
[BlackClock "0:00:03"]

1. e4 {[%clk 0:02:59]}  g6 {[%clk 0:02:58]} 2. d4 {[%clk 0:02:59]}  Bg7 {[%clk 0:02:58]} 3. Nf3 {[%clk 0:02:58]}  d6 {[%clk 0:02:57]} 4. Nc3 {[%clk 0:02:58]}  a6 {[%clk 0:02:55]} 5. Be3 {[%clk 0:02:57]}  b5 {[%clk 0:02:55]} 6. Bd3 {[%clk 0:02:57]}  Bb7 {[%clk 0:02:53]} 7. e5 {[%clk 0:02:57]}  e6 {[%clk 0:02:47]} 8. a4 {[%clk 0:02:49]}  b4 {[%clk 0:02:35]} 9. Ne4 {[%clk 0:02:49]}  Bxe4 {[%clk 0:02:34]} 10. Bxe4 {[%clk 0:02:49]}  d5 {[%clk 0:02:34]} 11. Bd3 {[%clk 0:02:49]}  Nd7 {[%clk 0:02:31]} 12. a5 {[%clk 0:02:44]}  Ne7 {[%clk 0:02:29]} 13. c3 {[%clk 0:02:31]}  bxc3 {[%clk 0:02:25]} 14. bxc3 {[%clk 0:02:31]}  c5 {[%clk 0:02:25]} 15. h4 {[%clk 0:02:26]}  cxd4 {[%clk 0:02:23]} 16. cxd4 {[%clk 0:02:26]}  h6 {[%clk 0:02:15]} 17. h5 {[%clk 0:02:23]}  g5 {[%clk 0:02:15]} 18. Qc2 {[%clk 0:02:13]}  Ra7 {[%clk 0:01:32]} 19. Bd2 {[%clk 0:02:00]}  Rc7 {[%clk 0:01:26]} 20. Qb2 {[%clk 0:01:56]}  Qa8 {[%clk 0:01:18]} 21. Rc1 {[%clk 0:01:45]}  Rxc1+ {[%clk 0:01:15]} 22. Qxc1 {[%clk 0:01:45]}  f5 {[%clk 0:00:45]} 23. exf6 {[%clk 0:01:30]}  Bxf6 {[%clk 0:00:46]} 24. Qa3 {[%clk 0:01:25]}  Kf7 {[%clk 0:00:42]} 25. O-O {[%clk 0:01:19]}  g4 {[%clk 0:00:38]} 26. Nh2 {[%clk 0:01:19]}  Rg8 {[%clk 0:00:32]} 27. Be2 {[%clk 0:01:15]}  g3 {[%clk 0:00:30]} 28. fxg3 {[%clk 0:01:15]}  Nf5 {[%clk 0:00:28]} 29. Ng4 {[%clk 0:01:10]}  Bxd4+ {[%clk 0:00:19]} 30. Kh2 {[%clk 0:01:10]}  Bc5 {[%clk 0:00:17]} 31. Nxh6+ {[%clk 0:01:05]}  Ke8 {[%clk 0:00:11]} 32. Qa4 {[%clk 0:00:47]}  Nxh6 {[%clk 0:00:10]} 33. Bxh6 {[%clk 0:00:46]}  Bd6 {[%clk 0:00:09]} 34. Bf4 {[%clk 0:00:41]}  Qb8 {[%clk 0:00:09]} 35. Bxa6 {[%clk 0:00:36]}  e5 {[%clk 0:00:07]} 36. Bb5 {[%clk 0:00:24]}  exf4 {[%clk 0:00:07]} 37. Bxd7+ {[%clk 0:00:25]}  Kd8 {[%clk 0:00:07]} 38. Be6 {[%clk 0:00:24]}  fxg3+ {[%clk 0:00:06]} 39. Kh3 {[%clk 0:00:22]}  Rg7 {[%clk 0:00:06]} 40. Qh4+ {[%clk 0:00:18]}  Be7 {[%clk 0:00:05]} 41. Rf8+ {[%clk 0:00:17]}  Kc7 {[%clk 0:00:05]} 42. Qf4+ {[%clk 0:00:14]}  Bd6 {[%clk 0:00:04]} 43. Qc1+ {[%clk 0:00:14]}  Kb7 {[%clk 0:00:03]} 44. Rxb8+ {[%clk 0:00:14]}  Bxb8 {[%clk 0:00:03]} 45. Bxd5+ {[%clk 0:00:12]} 1-0


[Site "https://www.chess.com"]

[Event "Titled Tuesday Blitz October 04 Late 2022"]
[White "Kamsky, Gata"]
[Black "Melikyan, Gnel"]
[WhiteFideId "2000024"]
[BlackFideId "54109990"]
[WhiteElo "2666"]
[BlackElo "2138"]
[Result "1-0"]
[Round "02"]
[TimeControl "180+1"]
[Date "2022.10.04"]
[WhiteClock "0:00:27"]
[BlackClock "0:00:01"]

1. d4 {[%clk 0:03:00]}  d6 {[%clk 0:02:58]} 2. Nf3 {[%clk 0:02:59]}  Nf6 {[%clk 0:02:58]} 3. Bf4 {[%clk 0:02:53]}  g6 {[%clk 0:02:54]} 4. h3 {[%clk 0:02:52]}  Bg7 {[%clk 0:02:53]} 5. c3 {[%clk 0:02:52]}  O-O {[%clk 0:02:54]} 6. Nbd2 {[%clk 0:02:53]}  Nc6 {[%clk 0:02:53]} 7. e4 {[%clk 0:02:53]}  e5 {[%clk 0:02:30]} 8. dxe5 {[%clk 0:02:51]}  dxe5 {[%clk 0:02:30]} 9. Be3 {[%clk 0:02:45]}  a6 {[%clk 0:02:24]} 10. Bc4 {[%clk 0:02:35]}  Qe7 {[%clk 0:02:22]} 11. O-O {[%clk 0:02:33]}  Be6 {[%clk 0:02:21]} 12. Bxe6 {[%clk 0:02:32]}  Qxe6 {[%clk 0:02:21]} 13. Qb3 {[%clk 0:02:33]}  Qxb3 {[%clk 0:02:16]} 14. axb3 {[%clk 0:02:33]}  Rfd8 {[%clk 0:02:15]} 15. b4 {[%clk 0:02:30]}  Rac8 {[%clk 0:01:53]} 16. Rfe1 {[%clk 0:02:23]}  Rd3 {[%clk 0:01:50]} 17. Kf1 {[%clk 0:02:19]}  Rcd8 {[%clk 0:01:43]} 18. Ke2 {[%clk 0:02:18]}  h6 {[%clk 0:01:30]} 19. Red1 {[%clk 0:02:08]}  g5 {[%clk 0:01:20]} 20. Ne1 {[%clk 0:01:54]}  R3d7 {[%clk 0:01:16]} 21. Nc2 {[%clk 0:01:48]}  Nh5 {[%clk 0:00:44]} 22. g3 {[%clk 0:01:47]}  Ne7 {[%clk 0:00:39]} 23. Bc5 {[%clk 0:01:24]}  Nc6 {[%clk 0:00:20]} 24. Nb3 {[%clk 0:01:17]}  Rxd1 {[%clk 0:00:20]} 25. Rxd1 {[%clk 0:01:16]}  Rxd1 {[%clk 0:00:21]} 26. Kxd1 {[%clk 0:01:17]}  Nf6 {[%clk 0:00:21]} 27. f3 {[%clk 0:01:17]}  Nh5 {[%clk 0:00:20]} 28. Bf2 {[%clk 0:01:15]}  Bf8 {[%clk 0:00:21]} 29. Ne3 {[%clk 0:01:14]}  Kh7 {[%clk 0:00:20]} 30. Nd5 {[%clk 0:01:12]}  Bd6 {[%clk 0:00:20]} 31. Ke2 {[%clk 0:01:11]}  Kg6 {[%clk 0:00:19]} 32. Nd2 {[%clk 0:00:57]}  Nf6 {[%clk 0:00:15]} 33. Ne3 {[%clk 0:00:56]}  Ne7 {[%clk 0:00:12]} 34. Ndc4 {[%clk 0:00:51]}  Nd7 {[%clk 0:00:11]} 35. g4 {[%clk 0:00:49]}  Kf6 {[%clk 0:00:09]} 36. h4 {[%clk 0:00:49]}  Ke6 {[%clk 0:00:09]} 37. h5 {[%clk 0:00:48]}  f6 {[%clk 0:00:09]} 38. Nf5 {[%clk 0:00:43]}  Nxf5 {[%clk 0:00:08]} 39. gxf5+ {[%clk 0:00:44]}  Kf7 {[%clk 0:00:07]} 40. Na5 {[%clk 0:00:43]}  b6 {[%clk 0:00:06]} 41. Nc6 {[%clk 0:00:43]}  Ke8 {[%clk 0:00:04]} 42. Kd3 {[%clk 0:00:41]}  Bf8 {[%clk 0:00:03]} 43. Kc4 {[%clk 0:00:39]}  Kf7 {[%clk 0:00:02]} 44. Kd5 {[%clk 0:00:39]}  Ke8 {[%clk 0:00:02]} 45. c4 {[%clk 0:00:38]}  Bg7 {[%clk 0:00:02]} 46. c5 {[%clk 0:00:37]}  b5 {[%clk 0:00:02]} 47. Na5 {[%clk 0:00:32]}  Nb8 {[%clk 0:00:02]} 48. Ke6 {[%clk 0:00:32]}  Bf8 {[%clk 0:00:02]} 49. Be3 {[%clk 0:00:29]}  Bg7 {[%clk 0:00:01]} 50. c6 {[%clk 0:00:28]}  Bh8 {[%clk 0:00:01]} 51. Bc5 {[%clk 0:00:28]}  Bg7 {[%clk 0:00:01]} 52. Ba7 {[%clk 0:00:27]} 1-0


[Site "https://www.chess.com"]

[Event "Titled Tuesday Blitz October 04 Late 2022"]
[White "Korchmar, Vasiliy"]
[Black "Duda, Jan-Krzysztof"]
[WhiteFideId "24131750"]
[BlackFideId "1170546"]
[WhiteElo "2370"]
[BlackElo "2779"]
[Result "0-1"]
[Round "02"]
[TimeControl "180+1"]
[Date "2022.10.04"]
[WhiteClock "0:00:01"]
[BlackClock "0:00:33"]

1. e4 {[%clk 0:03:00]}  g6 {[%clk 0:02:57]} 2. d4 {[%clk 0:03:00]}  Bg7 {[%clk 0:02:56]} 3. Nc3 {[%clk 0:03:00]}  a6 {[%clk 0:02:55]} 4. f4 {[%clk 0:02:59]}  b5 {[%clk 0:02:55]} 5. Nf3 {[%clk 0:02:58]}  Bb7 {[%clk 0:02:55]} 6. Bd3 {[%clk 0:02:58]}  d6 {[%clk 0:02:51]} 7. O-O {[%clk 0:02:53]}  Nd7 {[%clk 0:02:51]} 8. a4 {[%clk 0:02:53]}  b4 {[%clk 0:02:51]} 9. Ne2 {[%clk 0:02:53]}  Ngf6 {[%clk 0:02:48]} 10. e5 {[%clk 0:02:51]}  Nd5 {[%clk 0:02:48]} 11. a5 {[%clk 0:02:47]}  c5 {[%clk 0:02:47]} 12. c3 {[%clk 0:02:47]}  O-O {[%clk 0:02:38]} 13. Bd2 {[%clk 0:02:46]}  Rc8 {[%clk 0:02:22]} 14. Qe1 {[%clk 0:02:44]}  bxc3 {[%clk 0:02:04]} 15. bxc3 {[%clk 0:02:45]}  cxd4 {[%clk 0:02:05]} 16. cxd4 {[%clk 0:02:45]}  dxe5 {[%clk 0:02:05]} 17. fxe5 {[%clk 0:02:46]}  e6 {[%clk 0:01:58]} 18. Rb1 {[%clk 0:02:34]}  Rc7 {[%clk 0:01:57]} 19. Ng3 {[%clk 0:02:33]}  Ne7 {[%clk 0:01:52]} 20. Bb4 {[%clk 0:02:03]}  Nxe5 {[%clk 0:01:47]} 21. dxe5 {[%clk 0:01:46]}  Qxd3 {[%clk 0:01:46]} 22. Bd6 {[%clk 0:01:41]}  Rd7 {[%clk 0:01:43]} 23. Ng5 {[%clk 0:01:28]}  Qd5 {[%clk 0:01:11]} 24. N5e4 {[%clk 0:01:20]}  Rc8 {[%clk 0:01:10]} 25. Qf2 {[%clk 0:00:43]}  Nf5 {[%clk 0:00:51]} 26. Rbd1 {[%clk 0:00:28]}  Nxg3 {[%clk 0:00:50]} 27. Nxg3 {[%clk 0:00:05]}  Qxa5 {[%clk 0:00:50]} 28. Bb4 {[%clk 0:00:01]}  Qd8 {[%clk 0:00:48]} 29. Rxd7 {[%clk 0:00:01]}  Qxd7 {[%clk 0:00:49]} 30. Bd6 {[%clk 0:00:01]}  Bh6 {[%clk 0:00:43]} 31. h4 {[%clk 0:00:01]}  Rc3 {[%clk 0:00:40]} 32. Kh2 {[%clk 0:00:01]}  Rc4 {[%clk 0:00:36]} 33. Ne2 {[%clk 0:00:01]}  f5 {[%clk 0:00:33]} 0-1


[Site "https://www.chess.com"]

[Event "Titled Tuesday Blitz October 04 Late 2022"]
[White "Le, Tuan Minh"]
[Black "Gunduz, Umut Erdem"]
[WhiteFideId "12401153"]
[BlackFideId "6381383"]
[WhiteElo "2530"]
[BlackElo "2182"]
[Result "1-0"]
[Round "02"]
[TimeControl "180+1"]
[Date "2022.10.04"]
[WhiteClock "0:00:50"]
[BlackClock "0:00:10"]

1. d4 {[%clk 0:03:00]}  Nf6 {[%clk 0:02:59]} 2. Nf3 {[%clk 0:02:59]}  c5 {[%clk 0:02:52]} 3. c3 {[%clk 0:02:59]}  b6 {[%clk 0:02:48]} 4. Bg5 {[%clk 0:02:57]}  e6 {[%clk 0:02:46]} 5. e4 {[%clk 0:02:44]}  cxd4 {[%clk 0:02:36]} 6. cxd4 {[%clk 0:02:29]}  h6 {[%clk 0:02:33]} 7. Bxf6 {[%clk 0:02:29]}  Qxf6 {[%clk 0:02:33]} 8. Nc3 {[%clk 0:02:24]}  Bb7 {[%clk 0:02:26]} 9. a3 {[%clk 0:02:20]}  Qd8 {[%clk 0:02:17]} 10. Bd3 {[%clk 0:02:18]}  Be7 {[%clk 0:02:18]} 11. O-O {[%clk 0:02:18]}  O-O {[%clk 0:02:18]} 12. Qe2 {[%clk 0:02:17]}  d6 {[%clk 0:02:14]} 13. Rac1 {[%clk 0:02:14]}  a6 {[%clk 0:02:14]} 14. e5 {[%clk 0:01:50]}  dxe5 {[%clk 0:02:03]} 15. dxe5 {[%clk 0:01:48]}  b5 {[%clk 0:01:43]} 16. Rfd1 {[%clk 0:01:46]}  Qb6 {[%clk 0:01:42]} 17. Bb1 {[%clk 0:01:37]}  Nc6 {[%clk 0:01:29]} 18. Qe4 {[%clk 0:01:23]}  g6 {[%clk 0:01:28]} 19. Qg4 {[%clk 0:01:24]}  Kg7 {[%clk 0:01:09]} 20. h4 {[%clk 0:01:24]}  Rad8 {[%clk 0:01:04]} 21. h5 {[%clk 0:01:22]}  g5 {[%clk 0:00:52]} 22. Ne4 {[%clk 0:01:22]}  Nd4 {[%clk 0:00:46]} 23. Nexg5 {[%clk 0:01:07]}  Ne2+ {[%clk 0:00:26]} 24. Kf1 {[%clk 0:01:06]}  hxg5 {[%clk 0:00:16]} 25. Nxg5 {[%clk 0:00:50]}  Kh6 {[%clk 0:00:10]} 26. Nxf7+ {[%clk 0:00:50]} 1-0


[Site "https://www.chess.com"]

[Event "Titled Tuesday Blitz October 04 Late 2022"]
[White "Melkumyan, Hrant"]
[Black "Pacan-Milej, Kosma"]
[WhiteFideId "13302485"]
[BlackFideId "21800537"]
[WhiteElo "2604"]
[BlackElo "2302"]
[Result "1-0"]
[Round "02"]
[TimeControl "180+1"]
[Date "2022.10.04"]
[WhiteClock "0:01:09"]
[BlackClock "0:00:18"]

1. Nf3 {[%clk 0:02:59]}  Nf6 {[%clk 0:02:57]} 2. c4 {[%clk 0:02:58]}  g6 {[%clk 0:02:57]} 3. Nc3 {[%clk 0:02:56]}  Bg7 {[%clk 0:02:57]} 4. e4 {[%clk 0:02:56]}  d6 {[%clk 0:02:58]} 5. d4 {[%clk 0:02:57]}  O-O {[%clk 0:02:58]} 6. Be2 {[%clk 0:02:57]}  e5 {[%clk 0:02:59]} 7. O-O {[%clk 0:02:57]}  Bg4 {[%clk 0:02:59]} 8. dxe5 {[%clk 0:02:50]}  dxe5 {[%clk 0:02:58]} 9. Nxe5 {[%clk 0:02:41]}  Qxd1 {[%clk 0:02:53]} 10. Bxd1 {[%clk 0:02:40]}  Bxd1 {[%clk 0:02:51]} 11. Rxd1 {[%clk 0:02:41]}  Nxe4 {[%clk 0:02:52]} 12. Nxg6 {[%clk 0:02:24]}  Nxc3 {[%clk 0:02:26]} 13. Ne7+ {[%clk 0:02:24]}  Kh8 {[%clk 0:02:25]} 14. bxc3 {[%clk 0:02:25]}  Na6 {[%clk 0:02:07]} 15. Bf4 {[%clk 0:02:08]}  Bxc3 {[%clk 0:01:57]} 16. Rab1 {[%clk 0:02:08]}  b6 {[%clk 0:01:19]} 17. Nd5 {[%clk 0:02:06]}  Bg7 {[%clk 0:01:18]} 18. Nxc7 {[%clk 0:02:06]}  Nxc7 {[%clk 0:01:17]} 19. Bxc7 {[%clk 0:02:07]}  Rac8 {[%clk 0:01:15]} 20. Rd7 {[%clk 0:02:06]}  Kg8 {[%clk 0:01:14]} 21. g3 {[%clk 0:01:57]}  Rfe8 {[%clk 0:01:13]} 22. Rbd1 {[%clk 0:01:54]}  Bf6 {[%clk 0:01:12]} 23. R1d3 {[%clk 0:01:45]}  Re2 {[%clk 0:01:09]} 24. Rf3 {[%clk 0:01:41]}  Kg7 {[%clk 0:01:05]} 25. a3 {[%clk 0:01:34]}  Rc2 {[%clk 0:01:00]} 26. Bf4 {[%clk 0:01:30]}  R8xc4 {[%clk 0:00:51]} 27. Rxa7 {[%clk 0:01:27]}  R4c3 {[%clk 0:00:47]} 28. Be3 {[%clk 0:01:25]}  Rd3 {[%clk 0:00:39]} 29. Kg2 {[%clk 0:01:22]}  Kg6 {[%clk 0:00:36]} 30. Bxb6 {[%clk 0:01:17]}  Rxf3 {[%clk 0:00:22]} 31. Kxf3 {[%clk 0:01:17]}  Rc3+ {[%clk 0:00:18]} 32. Kg2 {[%clk 0:01:14]}  Rb3 {[%clk 0:00:19]} 33. Be3 {[%clk 0:01:10]}  Bc3 {[%clk 0:00:18]} 34. a4 {[%clk 0:01:09]}  Ra3 {[%clk 0:00:18]} 35. Bb6 {[%clk 0:01:09]} 1-0


[Site "https://www.chess.com"]

[Event "Titled Tuesday Blitz October 04 Late 2022"]
[White "Obrien, Matthew"]
[Black "Vazquez, Guillermo"]
[WhiteFideId "2059150"]
[BlackFideId "3702308"]
[WhiteElo "2607"]
[BlackElo "2543"]
[Result "0-1"]
[Round "02"]
[TimeControl "180+1"]
[Date "2022.10.04"]
[WhiteClock "0:00:03"]
[BlackClock "0:00:11"]

1. e4 {[%clk 0:03:00]}  e5 {[%clk 0:02:43]} 2. Nf3 {[%clk 0:03:00]}  Nc6 {[%clk 0:02:43]} 3. Bc4 {[%clk 0:03:00]}  Nf6 {[%clk 0:02:43]} 4. d3 {[%clk 0:03:00]}  h6 {[%clk 0:02:41]} 5. O-O {[%clk 0:03:00]}  d6 {[%clk 0:02:41]} 6. d4 {[%clk 0:02:59]}  exd4 {[%clk 0:02:10]} 7. Nxd4 {[%clk 0:02:53]}  Be7 {[%clk 0:02:10]} 8. Nc3 {[%clk 0:02:51]}  O-O {[%clk 0:02:09]} 9. Re1 {[%clk 0:02:44]}  Re8 {[%clk 0:02:06]} 10. h3 {[%clk 0:02:42]}  Bf8 {[%clk 0:02:04]} 11. Bb5 {[%clk 0:02:29]}  Bd7 {[%clk 0:02:03]} 12. Bxc6 {[%clk 0:02:26]}  bxc6 {[%clk 0:02:02]} 13. Qf3 {[%clk 0:02:27]}  g6 {[%clk 0:01:53]} 14. Bf4 {[%clk 0:02:22]}  Bg7 {[%clk 0:01:47]} 15. Rad1 {[%clk 0:02:10]}  Qb8 {[%clk 0:01:29]} 16. e5 {[%clk 0:01:53]}  Nh5 {[%clk 0:00:58]} 17. Bh2 {[%clk 0:01:46]}  Qb6 {[%clk 0:00:58]} 18. Nb3 {[%clk 0:01:09]}  Bh8 {[%clk 0:00:45]} 19. g4 {[%clk 0:01:01]}  Ng7 {[%clk 0:00:43]} 20. exd6 {[%clk 0:01:01]}  cxd6 {[%clk 0:00:41]} 21. Bxd6 {[%clk 0:00:58]}  Ne6 {[%clk 0:00:41]} 22. h4 {[%clk 0:00:44]}  Rad8 {[%clk 0:00:33]} 23. Ne4 {[%clk 0:00:44]}  c5 {[%clk 0:00:27]} 24. Nf6+ {[%clk 0:00:35]}  Bxf6 {[%clk 0:00:27]} 25. Qxf6 {[%clk 0:00:36]}  Ng7 {[%clk 0:00:26]} 26. Be5 {[%clk 0:00:34]}  Qxf6 {[%clk 0:00:24]} 27. Bxf6 {[%clk 0:00:35]}  Rxe1+ {[%clk 0:00:24]} 28. Rxe1 {[%clk 0:00:36]}  Rc8 {[%clk 0:00:24]} 29. Re7 {[%clk 0:00:31]}  Bxg4 {[%clk 0:00:24]} 30. Rxa7 {[%clk 0:00:27]}  Nh5 {[%clk 0:00:23]} 31. Be5 {[%clk 0:00:26]}  Re8 {[%clk 0:00:22]} 32. f4 {[%clk 0:00:25]}  f6 {[%clk 0:00:22]} 33. Bd6 {[%clk 0:00:20]}  Re2 {[%clk 0:00:19]} 34. Bxc5 {[%clk 0:00:09]}  Rxc2 {[%clk 0:00:16]} 35. Bd4 {[%clk 0:00:05]}  Bf3 {[%clk 0:00:15]} 36. Bc3 {[%clk 0:00:03]}  Rg2+ {[%clk 0:00:11]} 37. Kf1 {[%clk 0:00:03]}  Ng3+ {[%clk 0:00:11]} 38. Ke1 {[%clk 0:00:03]}  Re2+ {[%clk 0:00:12]} 39. Kd1 {[%clk 0:00:03]}  Re7+ {[%clk 0:00:12]} 40. Kc2 {[%clk 0:00:04]}  Rxa7 {[%clk 0:00:13]} 41. Nd4 {[%clk 0:00:04]}  Be4+ {[%clk 0:00:14]} 42. Kd2 {[%clk 0:00:04]}  Rxa2 {[%clk 0:00:13]} 43. Ke3 {[%clk 0:00:05]}  Bb1 {[%clk 0:00:12]} 44. Nb5 {[%clk 0:00:04]}  Nf5+ {[%clk 0:00:12]} 45. Kd2 {[%clk 0:00:04]}  Ra4 {[%clk 0:00:10]} 46. Bxf6 {[%clk 0:00:04]}  Rxf4 {[%clk 0:00:10]} 47. Nc3 {[%clk 0:00:04]}  Be4 {[%clk 0:00:09]} 48. Be5 {[%clk 0:00:04]}  Rxh4 {[%clk 0:00:09]} 49. b4 {[%clk 0:00:03]}  Bb7 {[%clk 0:00:09]} 50. b5 {[%clk 0:00:03]}  h5 {[%clk 0:00:10]} 51. b6 {[%clk 0:00:03]}  Rb4 {[%clk 0:00:10]} 52. Bc7 {[%clk 0:00:03]}  h4 {[%clk 0:00:11]} 53. Na2 {[%clk 0:00:03]}  Rb2+ {[%clk 0:00:11]} 0-1


[Site "https://www.chess.com"]